[Event "Early-Titled-Tuesday-Blitz-May-28-2024"]
[Site "Chess.com"]
[Date "2024.05.28"]
[Round "3"]
[White "Quattroporte300"]
[Black "ailime26"]
[Result "1-0"]
[WhiteElo "2393"]
[BlackElo "2086"]
[TimeControl "180+1"]
[EndTime "8:29:53 PDT"]
[Termination "Quattroporte300 won by checkmate"]

1. e4 {[%clk 0:02:58.7]} 1... c5 {[%clk 0:02:56.9]} 2. Nc3 {[%clk 0:02:58.1]}
2... d6 {[%clk 0:02:55.3]} 3. d4 {[%clk 0:02:58.1]} 3... cxd4 {[%clk 0:02:54.7]}
4. Qxd4 {[%clk 0:02:59]} 4... Nf6 {[%clk 0:02:54.5]} 5. b3 {[%clk 0:02:57.6]}
5... g6 {[%clk 0:02:53.1]} 6. Bb2 {[%clk 0:02:57.6]} 6... Bg7 {[%clk 0:02:52.8]}
7. O-O-O {[%clk 0:02:54.4]} 7... Nc6 {[%clk 0:02:49.6]} 8. Qd2 {[%clk
0:02:54.5]} 8... a6 {[%clk 0:02:36.4]} 9. f3 {[%clk 0:02:52.8]} 9... b5 {[%clk
0:02:31.7]} 10. g4 {[%clk 0:02:46.6]} 10... O-O {[%clk 0:02:28.3]} 11. h4 {[%clk
0:02:46]} 11... Bd7 {[%clk 0:02:23.9]} 12. h5 {[%clk 0:02:43.5]} 12... Qb6
{[%clk 0:02:10.9]} 13. Kb1 {[%clk 0:02:23.7]} 13... b4 {[%clk 0:02:05.8]} 14.
Nd5 {[%clk 0:02:12]} 14... Nxd5 {[%clk 0:02:02.9]} 15. Bxg7 {[%clk 0:01:43]}
15... Kxg7 {[%clk 0:01:35.2]} 16. exd5 {[%clk 0:01:42.8]} 16... Ne5 {[%clk
0:01:33.6]} 17. Qh2 {[%clk 0:01:23.5]} 17... Rh8 {[%clk 0:01:25.3]} 18. h6+
{[%clk 0:01:23.1]} 18... Kf8 {[%clk 0:01:19.3]} 19. Qf4 {[%clk 0:01:19.3]} 19...
a5 {[%clk 0:01:14.2]} 20. Qd4 {[%clk 0:01:16.2]} 20... Qxd4 {[%clk 0:00:57]} 21.
Rxd4 {[%clk 0:01:17.1]} 21... f5 {[%clk 0:00:56.6]} 22. g5 {[%clk 0:01:02.2]}
22... Kf7 {[%clk 0:00:49.8]} 23. Be2 {[%clk 0:01:02.3]} 23... Rhb8 {[%clk
0:00:41.1]} 24. a3 {[%clk 0:00:40]} 24... bxa3 {[%clk 0:00:38.8]} 25. Ka2 {[%clk
0:00:40.6]} 25... a4 {[%clk 0:00:36.7]} 26. b4 {[%clk 0:00:41]} 26... Bb5 {[%clk
0:00:30]} 27. c4 {[%clk 0:00:39.6]} 27... Ba6 {[%clk 0:00:24.3]} 28. b5 {[%clk
0:00:38]} 28... Bc8 {[%clk 0:00:23.7]} 29. Nh3 {[%clk 0:00:35.4]} 29... Bd7
{[%clk 0:00:20]} 30. Kxa3 {[%clk 0:00:29.9]} 30... Rc8 {[%clk 0:00:19.6]} 31.
Nf2 {[%clk 0:00:27.8]} 31... Rc7 {[%clk 0:00:18.4]} 32. f4 {[%clk 0:00:24.3]}
32... Ng4 {[%clk 0:00:17.4]} 33. Nxg4 {[%clk 0:00:23.6]} 33... fxg4 {[%clk
0:00:17.5]} 34. Rg1 {[%clk 0:00:24.2]} 34... Rac8 {[%clk 0:00:14.9]} 35. Kb4
{[%clk 0:00:23.5]} 35... Bf5 {[%clk 0:00:13]} 36. Bxg4 {[%clk 0:00:22.1]} 36...
Bxg4 {[%clk 0:00:12.5]} 37. Rxg4 {[%clk 0:00:21.9]} 37... a3 {[%clk 0:00:12.8]}
38. Rg2 {[%clk 0:00:22.4]} 38... Ra7 {[%clk 0:00:11.7]} 39. Ra2 {[%clk
0:00:22.8]} 39... Rca8 {[%clk 0:00:10.9]} 40. Kb3 {[%clk 0:00:20.6]} 40... Ra4
{[%clk 0:00:10]} 41. Rd1 {[%clk 0:00:21.2]} 41... R4a7 {[%clk 0:00:08.8]} 42.
Rda1 {[%clk 0:00:21.5]} 42... e6 {[%clk 0:00:06.1]} 43. dxe6+ {[%clk 0:00:20.8]}
43... Kxe6 {[%clk 0:00:06.3]} 44. Rxa3 {[%clk 0:00:21.7]} 44... Rxa3+ {[%clk
0:00:06]} 45. Rxa3 {[%clk 0:00:21.6]} 45... Re8 {[%clk 0:00:06.1]} 46. Kb4
{[%clk 0:00:21.9]} 46... Kf5 {[%clk 0:00:05.8]} 47. Rf3 {[%clk 0:00:21.6]} 47...
Ke4 {[%clk 0:00:05.1]} 48. Rf1 {[%clk 0:00:22]} 48... Kf5 {[%clk 0:00:04.9]} 49.
b6 {[%clk 0:00:21.6]} 49... Rb8 {[%clk 0:00:04.2]} 50. Kb5 {[%clk 0:00:22]}
50... Ke6 {[%clk 0:00:04.5]} 51. Re1+ {[%clk 0:00:19]} 51... Kf5 {[%clk
0:00:03.4]} 52. Re7 {[%clk 0:00:18.5]} 52... Kxf4 {[%clk 0:00:03.8]} 53. Rxh7
{[%clk 0:00:18.1]} 53... Kxg5 {[%clk 0:00:04.1]} 54. b7 {[%clk 0:00:18.5]} 54...
Kh5 {[%clk 0:00:04.2]} 55. Kc6 {[%clk 0:00:18.6]} 55... g5 {[%clk 0:00:04.4]}
56. Kc7 {[%clk 0:00:18.6]} 56... Rg8 {[%clk 0:00:04.5]} 57. b8=Q {[%clk
0:00:14.6]} 57... Rxb8 {[%clk 0:00:03.2]} 58. Kxb8 {[%clk 0:00:15.5]} 58... g4
{[%clk 0:00:03.5]} 59. Rg7 {[%clk 0:00:15.2]} 59... Kh4 {[%clk 0:00:04.4]} 60.
h7 {[%clk 0:00:14.3]} 60... g3 {[%clk 0:00:05.3]} 61. h8=Q# {[%clk 0:00:14.7]}
1-0

[Event "Early-Titled-Tuesday-Blitz-May-28-2024"]
[Site "Chess.com"]
[Date "2024.05.28"]
[Round "3"]
[White "GeorgiosSouleidis"]
[Black "maracayo"]
[Result "1-0"]
[WhiteElo "2604"]
[BlackElo "2390"]
[TimeControl "180+1"]
[EndTime "8:29:57 PDT"]
[Termination "GeorgiosSouleidis won by resignation"]

1. e4 {[%clk 0:03:00.9]} 1... d6 {[%clk 0:02:59.7]} 2. d4 {[%clk 0:02:59.9]}
2... Nf6 {[%clk 0:02:59.8]} 3. Nc3 {[%clk 0:02:59.5]} 3... c6 {[%clk 0:03:00.1]}
4. f4 {[%clk 0:02:55.7]} 4... Qa5 {[%clk 0:02:59.7]} 5. Bd3 {[%clk 0:02:55.4]}
5... e5 {[%clk 0:02:58.8]} 6. Nf3 {[%clk 0:02:55.8]} 6... Nbd7 {[%clk
0:02:57.8]} 7. O-O {[%clk 0:02:55.1]} 7... Be7 {[%clk 0:02:56.9]} 8. Kh1 {[%clk
0:02:52.2]} 8... O-O {[%clk 0:02:56.1]} 9. Be3 {[%clk 0:02:47.1]} 9... Re8
{[%clk 0:02:45.6]} 10. a3 {[%clk 0:02:47]} 10... Qc7 {[%clk 0:02:40.5]} 11. Qd2
{[%clk 0:02:37.3]} 11... Bf8 {[%clk 0:02:39.4]} 12. Rae1 {[%clk 0:02:35.3]}
12... h6 {[%clk 0:02:38.6]} 13. dxe5 {[%clk 0:02:03]} 13... dxe5 {[%clk
0:02:37.7]} 14. fxe5 {[%clk 0:02:03.9]} 14... Ng4 {[%clk 0:02:21.2]} 15. Bf4
{[%clk 0:01:08.5]} 15... Ndxe5 {[%clk 0:02:01.1]} 16. h3 {[%clk 0:00:47]} 16...
Nxf3 {[%clk 0:01:59]} 17. Rxf3 {[%clk 0:00:47.9]} 17... Ne5 {[%clk 0:01:58.3]}
18. Rff1 {[%clk 0:00:44.9]} 18... Be6 {[%clk 0:01:50.6]} 19. Qf2 {[%clk
0:00:42]} 19... f6 {[%clk 0:01:43]} 20. Qg3 {[%clk 0:00:38.3]} 20... Kh8 {[%clk
0:01:42.5]} 21. Nd1 {[%clk 0:00:27.6]} 21... Rad8 {[%clk 0:01:39.4]} 22. Ne3
{[%clk 0:00:27]} 22... Bd6 {[%clk 0:01:32]} 23. Be2 {[%clk 0:00:26.8]} 23... g5
{[%clk 0:01:26.1]} 24. Bxe5 {[%clk 0:00:23.2]} 24... Bxe5 {[%clk 0:01:24.9]} 25.
Qf3 {[%clk 0:00:21.1]} 25... Bf4 {[%clk 0:00:55.1]} 26. Qh5 {[%clk 0:00:12.5]}
26... Kg7 {[%clk 0:00:51.7]} 27. Bg4 {[%clk 0:00:07.9]} 27... Bxe3 {[%clk
0:00:33]} 28. Bxe6 {[%clk 0:00:08.2]} 28... Rxe6 {[%clk 0:00:31.2]} 29. Rxe3
{[%clk 0:00:08.3]} 29... Rde8 {[%clk 0:00:27.9]} 30. Rfe1 {[%clk 0:00:07]} 30...
Qf7 {[%clk 0:00:27.7]} 31. Qf3 {[%clk 0:00:06.6]} 31... Qg6 {[%clk 0:00:27.7]}
32. R1e2 {[%clk 0:00:05.5]} 32... h5 {[%clk 0:00:27.9]} 33. c4 {[%clk
0:00:04.4]} 33... g4 {[%clk 0:00:27.8]} 34. hxg4 {[%clk 0:00:04.7]} 34... hxg4
{[%clk 0:00:28.3]} 35. Qf4 {[%clk 0:00:05]} 35... Re5 {[%clk 0:00:26.7]} 36. Kg1
{[%clk 0:00:05.1]} 36... Qg5 {[%clk 0:00:24.2]} 37. Qg3 {[%clk 0:00:03.8]} 37...
Kg6 {[%clk 0:00:23.7]} 38. Kf2 {[%clk 0:00:03.2]} 38... Kg7 {[%clk 0:00:21.5]}
39. b4 {[%clk 0:00:03.7]} 39... a6 {[%clk 0:00:20.7]} 40. c5 {[%clk 0:00:03.9]}
40... Qg6 {[%clk 0:00:19.3]} 41. Qf4 {[%clk 0:00:03.4]} 41... Qg5 {[%clk
0:00:18.4]} 42. Kg3 {[%clk 0:00:03.1]} 42... Rg8 {[%clk 0:00:12.9]} 43. Qxg5+
{[%clk 0:00:02.5]} 43... Rxg5 {[%clk 0:00:12.2]} 44. Kf4 {[%clk 0:00:02.5]}
44... Re8 {[%clk 0:00:11.7]} 45. g3 {[%clk 0:00:02.5]} 45... Kg6 {[%clk
0:00:11.3]} 46. Rd3 {[%clk 0:00:02.8]} 46... Re7 {[%clk 0:00:10.6]} 47. Rd6
{[%clk 0:00:03]} 47... Rge5 {[%clk 0:00:09.9]} 48. Rd4 {[%clk 0:00:02.8]} 48...
Rg5 {[%clk 0:00:08.3]} 49. Rh2 {[%clk 0:00:02.5]} 49... Rge5 {[%clk 0:00:07.7]}
50. Rh4 {[%clk 0:00:02.4]} 50... Rg5 {[%clk 0:00:06.3]} 51. Rxg4 {[%clk
0:00:02.5]} 51... Rxg4+ {[%clk 0:00:06.6]} 52. Kxg4 {[%clk 0:00:03.4]} 52... Kf7
{[%clk 0:00:03.1]} 53. Kf4 {[%clk 0:00:03.2]} 53... Re5 {[%clk 0:00:04]} 54. g4
{[%clk 0:00:03.7]} 54... Rg5 {[%clk 0:00:04]} 55. Rd7+ {[%clk 0:00:03.6]} 55...
Ke6 {[%clk 0:00:03]} 56. Rxb7 {[%clk 0:00:04.5]} 56... Rg8 {[%clk 0:00:03]} 57.
Rc7 {[%clk 0:00:04.7]} 57... Rh8 {[%clk 0:00:03.9]} 58. Rxc6+ {[%clk 0:00:05.1]}
58... Kf7 {[%clk 0:00:04.1]} 59. Rxa6 {[%clk 0:00:05.7]} 59... Rh3 {[%clk
0:00:04.4]} 60. Ra7+ {[%clk 0:00:05.4]} 60... Kg6 {[%clk 0:00:05.3]} 61. c6
{[%clk 0:00:05.9]} 61... Rc3 {[%clk 0:00:05]} 62. c7 {[%clk 0:00:06.2]} 62...
Rc1 {[%clk 0:00:05]} 63. b5 {[%clk 0:00:06.3]} 63... Rf1+ {[%clk 0:00:05.6]} 64.
Ke3 {[%clk 0:00:06.9]} 64... Re1+ {[%clk 0:00:05.6]} 65. Kd2 {[%clk 0:00:07.5]}
65... Rb1 {[%clk 0:00:06.5]} 66. c8=Q {[%clk 0:00:07.3]} 1-0

[Event "Early-Titled-Tuesday-Blitz-May-28-2024"]
[Site "Chess.com"]
[Date "2024.05.28"]
[Round "3"]
[White "Giantgoogachess"]
[Black "Wizard_97"]
[Result "1-0"]
[WhiteElo "2365"]
[BlackElo "2718"]
[TimeControl "180+1"]
[EndTime "8:29:59 PDT"]
[Termination "Giantgoogachess won by checkmate"]

1. d4 {[%clk 0:03:00.9]} 1... c6 {[%clk 0:02:57.4]} 2. c4 {[%clk 0:03:00.5]}
2... d5 {[%clk 0:02:56.8]} 3. Nc3 {[%clk 0:02:56.1]} 3... Nf6 {[%clk 0:02:56.7]}
4. e3 {[%clk 0:02:56.8]} 4... a6 {[%clk 0:02:56.8]} 5. Nf3 {[%clk 0:02:51.5]}
5... g6 {[%clk 0:02:50.1]} 6. Bd3 {[%clk 0:02:50.1]} 6... Bg7 {[%clk 0:02:49.3]}
7. b3 {[%clk 0:02:49.6]} 7... O-O {[%clk 0:02:49.8]} 8. O-O {[%clk 0:02:50.3]}
8... Bf5 {[%clk 0:02:49.9]} 9. Bxf5 {[%clk 0:02:48.7]} 9... gxf5 {[%clk
0:02:50.8]} 10. cxd5 {[%clk 0:02:46.4]} 10... cxd5 {[%clk 0:02:50.8]} 11. Qd3
{[%clk 0:02:46.2]} 11... e6 {[%clk 0:02:50.2]} 12. Ba3 {[%clk 0:02:46.2]} 12...
Re8 {[%clk 0:02:50.1]} 13. Na4 {[%clk 0:02:45.2]} 13... Ne4 {[%clk 0:02:45.7]}
14. Rfc1 {[%clk 0:02:45.5]} 14... Nc6 {[%clk 0:02:44.2]} 15. Rc2 {[%clk
0:02:37.1]} 15... Rc8 {[%clk 0:02:43.5]} 16. Rac1 {[%clk 0:02:37.6]} 16... Qa5
{[%clk 0:02:37.6]} 17. Bc5 {[%clk 0:02:21.1]} 17... Nxc5 {[%clk 0:01:54.1]} 18.
Rxc5 {[%clk 0:02:19.6]} 18... Qb4 {[%clk 0:01:54.4]} 19. g3 {[%clk 0:02:07]}
19... Qa3 {[%clk 0:01:48.3]} 20. Qd2 {[%clk 0:01:55.8]} 20... Bf8 {[%clk
0:01:41.2]} 21. R5c2 {[%clk 0:01:51.8]} 21... Rcd8 {[%clk 0:01:22.7]} 22. Nc5
{[%clk 0:01:49.6]} 22... Nb4 {[%clk 0:01:15.5]} 23. Nxb7 {[%clk 0:01:36.9]}
23... Rb8 {[%clk 0:01:09.7]} 24. Rc7 {[%clk 0:01:36.8]} 24... Nxa2 {[%clk
0:01:08.2]} 25. Ra1 {[%clk 0:01:32.8]} 25... Qxb3 {[%clk 0:00:34.2]} 26. Qxa2
{[%clk 0:01:18.1]} 26... Rxb7 {[%clk 0:00:33.7]} 27. Qxb3 {[%clk 0:01:17.2]}
27... Rxb3 {[%clk 0:00:33.4]} 28. Rxa6 {[%clk 0:01:18.1]} 28... Be7 {[%clk
0:00:10.7]} 29. Raa7 {[%clk 0:01:17.3]} 29... Kf8 {[%clk 0:00:10.8]} 30. Ng5
{[%clk 0:01:11.2]} 30... Rb1+ {[%clk 0:00:05.2]} 31. Kg2 {[%clk 0:01:10.9]}
31... h6 {[%clk 0:00:04.7]} 32. Nh7+ {[%clk 0:00:54.7]} 32... Kg7 {[%clk
0:00:04.8]} 33. Rxe7 {[%clk 0:00:54.6]} 33... Rxe7 {[%clk 0:00:05.7]} 34. Rxe7
{[%clk 0:00:55]} 34... Kxh7 {[%clk 0:00:06.6]} 35. Rxf7+ {[%clk 0:00:55.7]}
35... Kg6 {[%clk 0:00:07.2]} 36. Rd7 {[%clk 0:00:52.5]} 36... Rb2 {[%clk
0:00:07.2]} 37. Kf3 {[%clk 0:00:52.1]} 37... Kf6 {[%clk 0:00:07.1]} 38. h4
{[%clk 0:00:52.4]} 38... Kg6 {[%clk 0:00:07.3]} 39. Re7 {[%clk 0:00:37.6]} 39...
Kf6 {[%clk 0:00:06.5]} 40. Ra7 {[%clk 0:00:38.3]} 40... Kg6 {[%clk 0:00:06.5]}
41. Ra1 {[%clk 0:00:32.4]} 41... Rc2 {[%clk 0:00:07]} 42. Rf1 {[%clk 0:00:32.5]}
42... Kf6 {[%clk 0:00:05.9]} 43. Kf4 {[%clk 0:00:32.9]} 43... Rb2 {[%clk
0:00:06.3]} 44. f3 {[%clk 0:00:33.3]} 44... Rb8 {[%clk 0:00:06.6]} 45. Rc1
{[%clk 0:00:29.1]} 45... Rb4 {[%clk 0:00:07]} 46. Rc6 {[%clk 0:00:27.2]} 46...
Ra4 {[%clk 0:00:06.8]} 47. g4 {[%clk 0:00:24.9]} 47... fxg4 {[%clk 0:00:07.1]}
48. fxg4 {[%clk 0:00:25.4]} 48... Ra1 {[%clk 0:00:07.5]} 49. g5+ {[%clk
0:00:25.6]} 49... hxg5+ {[%clk 0:00:07.8]} 50. hxg5+ {[%clk 0:00:26.5]} 50...
Kf7 {[%clk 0:00:07.5]} 51. Ke5 {[%clk 0:00:27]} 51... Re1 {[%clk 0:00:06.8]} 52.
g6+ {[%clk 0:00:21.8]} 52... Ke7 {[%clk 0:00:03.1]} 53. Rxe6+ {[%clk 0:00:21.9]}
53... Kd7 {[%clk 0:00:03]} 54. Kxd5 {[%clk 0:00:22.5]} 54... Rg1 {[%clk
0:00:02.4]} 55. e4 {[%clk 0:00:21.7]} 55... Ra1 {[%clk 0:00:01.4]} 56. Rf6
{[%clk 0:00:12.7]} 56... Rg1 {[%clk 0:00:01.9]} 57. e5 {[%clk 0:00:11.7]} 57...
Ke8 {[%clk 0:00:02.8]} 58. Ke6 {[%clk 0:00:11.1]} 58... Rg5 {[%clk 0:00:03.5]}
59. d5 {[%clk 0:00:10.9]} 59... Rg1 {[%clk 0:00:03.9]} 60. d6 {[%clk 0:00:11.4]}
60... Rd1 {[%clk 0:00:04]} 61. g7 {[%clk 0:00:10.7]} 61... Rg1 {[%clk
0:00:03.9]} 62. Rf8# {[%clk 0:00:10.8]} 1-0

[Event "Early-Titled-Tuesday-Blitz-May-28-2024"]
[Site "Chess.com"]
[Date "2024.05.28"]
[Round "3"]
[White "artin10862"]
[Black "korbul"]
[Result "0-1"]
[WhiteElo "3080"]
[BlackElo "2666"]
[TimeControl "180+1"]
[EndTime "8:30:01 PDT"]
[Termination "korbul won by resignation"]

1. g3 {[%clk 0:02:50.5]} 1... d5 {[%clk 0:02:59.4]} 2. Bg2 {[%clk 0:02:50.4]}
2... Nf6 {[%clk 0:02:59.7]} 3. Nf3 {[%clk 0:02:47.9]} 3... e6 {[%clk 0:02:59.8]}
4. O-O {[%clk 0:02:47.4]} 4... Be7 {[%clk 0:03:00.7]} 5. d3 {[%clk 0:02:45.8]}
5... O-O {[%clk 0:03:01.6]} 6. Nbd2 {[%clk 0:02:46.7]} 6... c5 {[%clk
0:03:01.2]} 7. e4 {[%clk 0:02:47.3]} 7... Nc6 {[%clk 0:03:02]} 8. Re1 {[%clk
0:02:47.6]} 8... Rb8 {[%clk 0:02:55.7]} 9. e5 {[%clk 0:02:46.5]} 9... Ne8 {[%clk
0:02:55.3]} 10. Nf1 {[%clk 0:02:47]} 10... Nc7 {[%clk 0:02:55.1]} 11. h4 {[%clk
0:02:47.3]} 11... b5 {[%clk 0:02:54.9]} 12. h5 {[%clk 0:02:47.4]} 12... h6
{[%clk 0:02:54.6]} 13. Bf4 {[%clk 0:02:47.6]} 13... b4 {[%clk 0:02:54.5]} 14.
Qd2 {[%clk 0:02:47.3]} 14... Nb5 {[%clk 0:02:54.3]} 15. N1h2 {[%clk 0:02:43.9]}
15... Nbd4 {[%clk 0:02:54.2]} 16. g4 {[%clk 0:02:37.4]} 16... Rb6 {[%clk
0:02:44.6]} 17. c3 {[%clk 0:02:30.4]} 17... bxc3 {[%clk 0:02:42.6]} 18. bxc3
{[%clk 0:02:31.3]} 18... Nxf3+ {[%clk 0:02:42.6]} 19. Nxf3 {[%clk 0:02:32.2]}
19... f6 {[%clk 0:02:34.1]} 20. Rad1 {[%clk 0:02:27.7]} 20... fxe5 {[%clk
0:02:31.7]} 21. Nxe5 {[%clk 0:02:26.4]} 21... Nxe5 {[%clk 0:02:31.3]} 22. Bxe5
{[%clk 0:02:27.3]} 22... Bd6 {[%clk 0:02:27.2]} 23. d4 {[%clk 0:02:25.9]} 23...
Bxe5 {[%clk 0:02:22.8]} 24. Rxe5 {[%clk 0:02:25.6]} 24... cxd4 {[%clk
0:02:19.6]} 25. cxd4 {[%clk 0:02:17.4]} 25... Qf6 {[%clk 0:02:19.1]} 26. Rc1
{[%clk 0:02:11.2]} 26... Bd7 {[%clk 0:02:12.7]} 27. Rc7 {[%clk 0:02:07.1]} 27...
Rb1+ {[%clk 0:02:11.3]} 28. Re1 {[%clk 0:02:06.7]} 28... Rxe1+ {[%clk
0:01:54.8]} 29. Qxe1 {[%clk 0:02:07.6]} 29... Bb5 {[%clk 0:01:51.8]} 30. Qe3
{[%clk 0:01:56.4]} 30... a6 {[%clk 0:01:46.9]} 31. Bf1 {[%clk 0:01:49.3]} 31...
Rf7 {[%clk 0:01:34]} 32. Rc8+ {[%clk 0:01:47.3]} 32... Rf8 {[%clk 0:01:34]} 33.
Rc5 {[%clk 0:01:27.6]} 33... Qf4 {[%clk 0:01:31.1]} 34. Qxe6+ {[%clk 0:01:17.9]}
34... Kh8 {[%clk 0:01:31.2]} 35. Rc2 {[%clk 0:00:37.2]} 35... Bxf1 {[%clk
0:01:20.5]} 36. Kxf1 {[%clk 0:00:37.1]} 36... Qxd4 {[%clk 0:01:19.7]} 37. Re2
{[%clk 0:00:34.5]} 37... a5 {[%clk 0:01:10.3]} 38. Qd6 {[%clk 0:00:25.4]} 38...
Kg8 {[%clk 0:00:42]} 39. Qe6+ {[%clk 0:00:23.3]} 39... Kh8 {[%clk 0:00:41.9]}
40. Kg2 {[%clk 0:00:23.8]} 40... a4 {[%clk 0:00:34.1]} 41. f3 {[%clk 0:00:22.2]}
41... a3 {[%clk 0:00:33.3]} 42. Qd6 {[%clk 0:00:21]} 42... Kg8 {[%clk
0:00:21.9]} 43. Qxa3 {[%clk 0:00:20.9]} 43... Qd1 {[%clk 0:00:19.8]} 44. Qe3
{[%clk 0:00:18.3]} 44... d4 {[%clk 0:00:18.2]} 45. Qb3+ {[%clk 0:00:18.2]} 45...
Qxb3 {[%clk 0:00:15.5]} 46. axb3 {[%clk 0:00:19.1]} 46... Rb8 {[%clk 0:00:13.9]}
47. Rb2 {[%clk 0:00:19.4]} 47... Kf7 {[%clk 0:00:14.5]} 48. Kf2 {[%clk
0:00:19.8]} 48... Ke6 {[%clk 0:00:15.2]} 49. Ke2 {[%clk 0:00:16.5]} 49... Kd5
{[%clk 0:00:16.1]} 50. Kd3 {[%clk 0:00:16.9]} 50... Rf8 {[%clk 0:00:14.8]} 51.
Rf2 {[%clk 0:00:14.5]} 51... Re8 {[%clk 0:00:14.9]} 52. Re2 {[%clk 0:00:09.8]}
52... Rf8 {[%clk 0:00:14.6]} 53. Rf2 {[%clk 0:00:10.3]} 53... Re8 {[%clk
0:00:14.8]} 54. Kc2 {[%clk 0:00:09.1]} 54... Rc8+ {[%clk 0:00:13.1]} 55. Kb2
{[%clk 0:00:09.4]} 55... d3 {[%clk 0:00:12.1]} 56. f4 {[%clk 0:00:05.9]} 56...
Ke4 {[%clk 0:00:11.9]} 57. g5 {[%clk 0:00:06]} 57... Ke3 {[%clk 0:00:11.5]} 58.
Rf1 {[%clk 0:00:06.6]} 58... Ke2 {[%clk 0:00:11.4]} 59. Rh1 {[%clk 0:00:06.4]}
59... d2 {[%clk 0:00:11.7]} 60. b4 {[%clk 0:00:07.1]} 60... d1=Q {[%clk
0:00:11.3]} 61. Rxd1 {[%clk 0:00:07.8]} 61... Kxd1 {[%clk 0:00:12.2]} 62. gxh6
{[%clk 0:00:08.1]} 62... gxh6 {[%clk 0:00:11.5]} 63. Kb3 {[%clk 0:00:08.7]}
63... Rf8 {[%clk 0:00:11.5]} 64. b5 {[%clk 0:00:09.4]} 64... Rxf4 {[%clk
0:00:11.7]} 65. b6 {[%clk 0:00:10]} 65... Rf6 {[%clk 0:00:11.4]} 0-1

[Event "Early-Titled-Tuesday-Blitz-May-28-2024"]
[Site "Chess.com"]
[Date "2024.05.28"]
[Round "3"]
[White "LoaySameer"]
[Black "AradNazari"]
[Result "0-1"]
[WhiteElo "2516"]
[BlackElo "2796"]
[TimeControl "180+1"]
[EndTime "8:30:03 PDT"]
[Termination "AradNazari won by resignation"]

1. Nf3 {[%clk 0:03:00.9]} 1... c5 {[%clk 0:02:54.8]} 2. g3 {[%clk 0:03:01]} 2...
Nc6 {[%clk 0:02:55]} 3. Bg2 {[%clk 0:03:01.1]} 3... e5 {[%clk 0:02:55.4]} 4. O-O
{[%clk 0:03:01.3]} 4... g6 {[%clk 0:02:55.9]} 5. c4 {[%clk 0:03:01.1]} 5... Bg7
{[%clk 0:02:56.4]} 6. Nc3 {[%clk 0:03:01.4]} 6... Nge7 {[%clk 0:02:56.9]} 7. d3
{[%clk 0:03:01.7]} 7... O-O {[%clk 0:02:57.3]} 8. Ne1 {[%clk 0:03:02]} 8... d6
{[%clk 0:02:56.8]} 9. Nc2 {[%clk 0:03:02.4]} 9... Be6 {[%clk 0:02:54.7]} 10. Ne3
{[%clk 0:03:02.5]} 10... a6 {[%clk 0:02:54.5]} 11. Ned5 {[%clk 0:03:02.7]} 11...
Rb8 {[%clk 0:02:54.4]} 12. a3 {[%clk 0:03:03.1]} 12... b5 {[%clk 0:02:54.7]} 13.
b4 {[%clk 0:03:03.4]} 13... Qd7 {[%clk 0:02:41.5]} 14. Be3 {[%clk 0:02:54.5]}
14... Nd4 {[%clk 0:02:39.2]} 15. Nxe7+ {[%clk 0:02:49.4]} 15... Qxe7 {[%clk
0:02:39.3]} 16. Nd5 {[%clk 0:02:50.3]} 16... Qd7 {[%clk 0:02:33.5]} 17. Bxd4
{[%clk 0:02:47.5]} 17... exd4 {[%clk 0:02:06.9]} 18. Qd2 {[%clk 0:02:36]} 18...
Bxd5 {[%clk 0:01:57.5]} 19. Bxd5 {[%clk 0:02:35.7]} 19... bxc4 {[%clk 0:01:50]}
20. dxc4 {[%clk 0:02:31.1]} 20... h5 {[%clk 0:01:43.5]} 21. h4 {[%clk
0:02:16.5]} 21... Kh7 {[%clk 0:01:40.9]} 22. Rab1 {[%clk 0:02:14.2]} 22... Qf5
{[%clk 0:01:23.8]} 23. Qd3 {[%clk 0:02:04.6]} 23... Qe5 {[%clk 0:01:07.1]} 24.
f4 {[%clk 0:01:42.9]} 24... Qe3+ {[%clk 0:00:58.7]} 25. Qxe3 {[%clk 0:01:43]}
25... dxe3 {[%clk 0:00:59.6]} 26. Kg2 {[%clk 0:01:32.7]} 26... Bd4 {[%clk
0:00:51]} 27. f5 {[%clk 0:01:31.6]} 27... Kg7 {[%clk 0:00:46.6]} 28. b5 {[%clk
0:01:23.7]} 28... axb5 {[%clk 0:00:44.5]} 29. cxb5 {[%clk 0:01:23.9]} 29... c4
{[%clk 0:00:32.9]} 30. Bxc4 {[%clk 0:01:20.6]} 30... Rbc8 {[%clk 0:00:24.9]} 31.
Bd3 {[%clk 0:01:20.8]} 31... Bb6 {[%clk 0:00:23.5]} 32. Rbc1 {[%clk 0:01:14.7]}
32... d5 {[%clk 0:00:19.7]} 33. f6+ {[%clk 0:01:03.8]} 33... Kh6 {[%clk
0:00:18.2]} 34. Rc6 {[%clk 0:01:00.4]} 34... Rxc6 {[%clk 0:00:14.4]} 35. bxc6
{[%clk 0:01:01.3]} 35... Ra8 {[%clk 0:00:11.5]} 36. Rb1 {[%clk 0:01:00]} 36...
Bd8 {[%clk 0:00:09.3]} 37. Rb7 {[%clk 0:00:55.5]} 37... Bxf6 {[%clk 0:00:09.4]}
38. Rxf7 {[%clk 0:00:55.5]} 38... Be5 {[%clk 0:00:10]} 39. Re7 {[%clk
0:00:52.2]} 39... Bf6 {[%clk 0:00:08.1]} 40. Rf7 {[%clk 0:00:28.6]} 40... Be5
{[%clk 0:00:08.1]} 41. Rd7 {[%clk 0:00:17.9]} 41... Rxa3 {[%clk 0:00:07.9]} 42.
Rxd5 {[%clk 0:00:18.1]} 42... Bc7 {[%clk 0:00:04]} 43. Rd7 {[%clk 0:00:18.2]}
43... Be5 {[%clk 0:00:04.6]} 44. Rd5 {[%clk 0:00:18.4]} 44... Bc7 {[%clk
0:00:04.8]} 45. Rc5 {[%clk 0:00:18.8]} 45... Ra5 {[%clk 0:00:04.6]} 46. Rxa5
{[%clk 0:00:15.6]} 46... Bxa5 {[%clk 0:00:04.7]} 47. Kf3 {[%clk 0:00:16]} 47...
Bc7 {[%clk 0:00:05.3]} 48. Bc4 {[%clk 0:00:11.3]} 48... g5 {[%clk 0:00:05.8]}
49. Bf7 {[%clk 0:00:10.7]} 49... g4+ {[%clk 0:00:05.5]} 50. Kxe3 {[%clk
0:00:09.9]} 50... Bxg3 {[%clk 0:00:05.9]} 51. Ke4 {[%clk 0:00:09.9]} 51... Bc7
{[%clk 0:00:04.6]} 52. Kf5 {[%clk 0:00:10.1]} 52... g3 {[%clk 0:00:04.9]} 53.
Bd5 {[%clk 0:00:10.5]} 53... Bd8 {[%clk 0:00:03.9]} 54. Ke6 {[%clk 0:00:09.7]}
54... Kg7 {[%clk 0:00:02.8]} 55. Kd7 {[%clk 0:00:09.8]} 55... Bb6 {[%clk
0:00:03.1]} 56. c7 {[%clk 0:00:10]} 56... Bxc7 {[%clk 0:00:03.8]} 57. Kxc7
{[%clk 0:00:10.6]} 57... Kf6 {[%clk 0:00:04.5]} 58. Kd6 {[%clk 0:00:09.6]} 58...
Kf5 {[%clk 0:00:04.7]} 59. e4+ {[%clk 0:00:10.2]} 59... Kg4 {[%clk 0:00:04.7]}
60. e5 {[%clk 0:00:10.9]} 60... Kxh4 {[%clk 0:00:03.1]} 61. e6 {[%clk
0:00:11.4]} 61... g2 {[%clk 0:00:02.8]} 62. e7 {[%clk 0:00:12.1]} 62... g1=Q
{[%clk 0:00:03.2]} 63. e8=Q {[%clk 0:00:12.7]} 63... Qg3+ {[%clk 0:00:04]} 64.
Kd7 {[%clk 0:00:12.3]} 64... Qg4+ {[%clk 0:00:04.1]} 65. Kc6 {[%clk 0:00:11.4]}
65... Qa4+ {[%clk 0:00:04]} 0-1